bitfinex/quotes_BTCUSD_20250308
["timestamp","ask_amount","ask_price","bid_price","bid_amount"]
[1741406465273,0.243811,86132.0,86131.0,6e-07]
[1741406465473,0.30339818,86132.0,86131.0,6e-07]
[1741406467686,0.01161,86130.0,86129.0,6e-07]
[1741406467886,0.04791718,86130.0,86129.0,6e-07]
[1741406468083,0.321337,86123.0,86122.0,2e-07]
[1741406468287,0.35764418,86123.0,86122.0,3.9e-07]
[1741406468600,0.46928418,86123.0,86122.0,3.9e-07]
[1741406469353,0.51111762,86123.0,86122.0,3.9e-07]
[1741406470302,0.55971762,86123.0,86122.0,3.9e-07]
[1741406471560,0.243854,86117.0,86116.0,0.00029979]
[1741406471760,0.28016118,86117.0,86116.0,0.00029979]
[1741406472505,0.243854,86117.0,86116.0,0.00029979]
[1741406473695,0.248514,86117.0,86116.0,0.00029979]
[1741406474637,0.28470399,86117.0,86116.0,0.00029979]
[1741406475476,0.28004399,86117.0,86116.0,0.00029979]
[1741406480335,0.28521066,86117.0,86116.0,0.00029979]
[1741406482049,0.40971066,86117.0,86116.0,7.9e-07]
[1741406482481,0.28521066,86117.0,86116.0,7.9e-07]
[1741406482890,0.243854,86117.0,86116.0,7.9e-07]
[1741406484085,0.232238,86119.0,86116.0,7.9e-07]
[1741406484284,0.339911,86122.0,86117.0,0.0814]
[1741406484492,0.011611,86119.0,86117.0,0.0814]
[1741406484698,0.011611,86118.0,86117.0,0.0814]
[1741406487415,0.02982323,86118.0,86117.0,0.0814]
[1741406488240,0.02982323,86118.0,86116.0,7.9e-07]
[1741406488438,0.243854,86117.0,86116.0,7.9e-07]
[1741406489235,0.28009968,86117.0,86116.0,7.9e-07]
[1741406491680,0.30337968,86117.0,86116.0,7.9e-07]
[1741406492451,0.3269798,86117.0,86116.0,7.9e-07]
[1741406492697,0.243867,86112.0,86111.0,0.0004]
[1741406492903,0.30339268,86112.0,86111.0,0.0004]
[1741406495958,0.50339268,86112.0,86111.0,1e-06]
[1741406496163,0.55019268,86112.0,86111.0,1e-06]
[1741406496787,0.55019268,86112.0,86100.0,4e-07]
[1741406496788,0.011614,86101.0,86100.0,4e-07]
[1741406496975,0.011614,86101.0,86094.0,0.005]
[1741406496976,0.011615,86095.0,86094.0,4e-07]
[1741406497194,0.267196,86095.0,86094.0,4e-07]
[1741406497386,0.30344168,86095.0,86094.0,4e-07]
[1741406497683,0.30344168,86095.0,86091.0,4e-07]
[1741406497887,0.267204,86092.0,86091.0,4e-07]
[1741406498084,0.30344968,86092.0,86091.0,0.00038785]
[1741406498511,0.30344968,86092.0,86072.0,0.1285]
[1741406498512,0.243944,86085.0,86084.0,8.5e-07]
[1741406498712,0.28018968,86085.0,86084.0,8.5e-07]
[1741406498887,0.28018968,86085.0,86066.0,0.0807]
[1741406498888,0.243981,86072.0,86066.0,0.0807]
[1741406499292,0.27285625,86072.0,86071.0,0.00051611]
[1741406499700,0.29107757,86072.0,86071.0,0.00051611]
[1741406500865,0.26220232,86072.0,86071.0,0.00051611]
[1741406501074,0.01822132,86072.0,86071.0,0.08121611]
[1741406501891,0.01822132,86072.0,86071.0,0.14123411]
[1741406502302,0.01822132,86072.0,86071.0,0.14157391]
[1741406502710,0.01822132,86072.0,86071.0,0.12995591]
[1741406503745,0.01822132,86072.0,86071.0,0.14157391]
[1741406503926,0.011616,86083.0,86077.0,0.011617]
[1741406504271,0.011616,86083.0,86079.0,0.0773]
[1741406504477,0.243952,86082.0,86079.0,0.0773]
[1741406504618,0.011617,86080.0,86079.0,0.0773]
[1741406505430,0.011616,86084.0,86079.0,0.321259]
[1741406505835,0.011616,86085.0,86080.0,0.011617]
[1741406506099,0.011616,86084.0,86079.0,0.088917]
[1741406506248,0.243949,86083.0,86079.0,0.0773]
[1741406506434,0.011616,86082.0,86079.0,0.0773]
[1741406506634,0.243955,86081.0,86079.0,0.0773]
[1741406506880,0.011617,86080.0,86079.0,0.0773]
[1741406507845,0.011617,86080.0,86079.0,0.18898]
[1741406508730,0.011618,86072.0,86069.0,0.3217]
[1741406508929,0.011618,86072.0,86071.0,0.11253591]
[1741406509139,0.243981,86072.0,86071.0,0.00085591]
[1741406509478,0.26220129,86072.0,86071.0,0.00085591]
[1741406511755,0.28548129,86072.0,86071.0,0.00085591]
[1741406512724,0.36649951,86072.0,86071.0,0.00085591]
[1741406515304,0.40270074,86072.0,86071.0,0.00085591]
[1741406515513,0.29840252,86072.0,86071.0,0.00085591]
[1741406516238,0.28018223,86072.0,86071.0,0.00085591]
[1741406517500,0.3039796,86072.0,86071.0,0.00085591]
[1741406519284,0.32220268,86072.0,86071.0,0.00085591]
[1741406519906,0.32220268,86072.0,86071.0,9.1e-07]
[1741406520320,0.39438268,86072.0,86071.0,9.1e-07]
[1741406520918,0.39438268,86072.0,86050.0,0.11168]
[1741406520919,0.244015,86060.0,86050.0,0.11168]
[1741406521861,0.29185411,86060.0,86050.0,0.11168]
[1741406523303,0.32806563,86060.0,86050.0,0.11168]
[1741406523509,0.32806563,86060.0,86045.0,0.0003398]
[1741406523510,0.244046,86049.0,86045.0,0.0003398]
[1741406523708,0.244046,86049.0,86048.0,0.00040281]
[1741406524290,0.28025833,86049.0,86048.0,0.00040281]
[1741406525154,0.244054,86046.0,86045.0,6.1e-07]
[1741406525480,0.28026633,86046.0,86045.0,6.1e-07]
[1741406526696,0.29849417,86046.0,86045.0,6.1e-07]
[1741406527482,0.32177417,86046.0,86045.0,6.1e-07]
[1741406528741,0.26228184,86046.0,86045.0,6.1e-07]
[1741406529069,0.12239383,86046.0,86045.0,0.01162161]
[1741406529263,0.13401483,86046.0,86045.0,6.1e-07]
[1741406531547,0.02984884,86046.0,86045.0,6.1e-07]
[1741406536486,0.05312884,86046.0,86045.0,6.1e-07]
[1741406537966,0.0893443,86046.0,86045.0,6.1e-07]
[1741406538165,0.07111646,86046.0,86045.0,6.1e-07]
[1741406538575,0.011622,86037.0,86036.0,0.11172]
[1741406538788,0.244094,86032.0,86031.0,0.0008]
[1741406538963,0.244094,86032.0,86031.0,0.0009163]
[1741406541095,0.26232364,86032.0,86031.0,0.0009163]
[1741406541699,0.21454541,86034.0,86031.0,0.0009163]
[1741406541951,0.232471,86032.0,86031.0,0.0009163]
[1741406542291,0.244094,86032.0,86031.0,0.0009163]
[1741406545329,0.2803644,86032.0,86031.0,0.0009163]
[1741406545858,0.2802644,86032.0,86031.0,0.0009163]
[1741406546477,0.243894,86032.0,86031.0,0.0009163]
[1741406546656,0.26212501,86032.0,86031.0,0.0009163]
[1741406546856,0.14800841,86034.0,86031.0,0.0009163]
[1741406547055,0.244094,86032.0,86031.0,0.0009163]
[1741406547262,0.26232524,86032.0,86031.0,0.0009163]
[1741406549581,0.02985424,86032.0,86031.0,0.0796163]
[1741406549795,0.02979613,86032.0,86031.0,0.0796163]
[1741406549972,0.02975613,86032.0,86031.0,0.0796163]
[1741406550802,0.02975613,86032.0,86031.0,0.0799557]
[1741406551951,0.02975613,86032.0,86031.0,0.0012557]
[1741406554190,0.011623,86032.0,86031.0,0.0012557]
[1741406557253,0.06616673,86032.0,86031.0,0.0012557]
[1741406557685,0.02985357,86032.0,86031.0,0.0012557]
[1741406558031,0.06616647,86032.0,86031.0,0.0012557]
[1741406561935,0.02985357,86032.0,86031.0,0.0012557]
[1741406563819,0.01840037,86032.0,86031.0,0.0012557]
[1741406564023,0.01840037,86032.0,86031.0,0.0948787]
[1741406564024,0.0001698,86032.0,86031.0,0.0948787]
[1741406564631,0.0001698,86032.0,86031.0,0.0832557]
[1741406565263,0.0117928,86032.0,86031.0,0.0012557]
[1741406566064,0.04811664,86032.0,86031.0,0.0012557]
[1741406567918,0.12811664,86032.0,86031.0,0.0012557]
[1741406568124,0.17561664,86032.0,86031.0,0.0012557]
[1741406570819,0.17561664,86032.0,86029.0,0.0003398]
[1741406571047,0.011623,86030.0,86029.0,0.00038481]
[1741406571248,0.04794684,86030.0,86029.0,0.00038481]
[1741406572057,0.06248769,86030.0,86029.0,8.1e-07]
[1741406572232,0.244126,86021.0,86020.0,9.1e-07]
[1741406572430,1.06287069,86021.0,86020.0,9.1e-07]
[1741406573984,1.08571164,86021.0,86020.0,9.1e-07]
[1741406574999,0.89445079,86021.0,86020.0,9.1e-07]
[1741406575154,0.65487079,86021.0,86020.0,9.1e-07]
[1741406575970,0.66365655,86021.0,86020.0,9.1e-07]
[1741406576169,0.64037655,86021.0,86020.0,9.1e-07]
[1741406577094,0.64037655,86021.0,86020.0,0.00017071]
[1741406579139,0.6175356,86021.0,86020.0,0.00017071]
[1741406579562,0.2892356,86021.0,86020.0,0.00017071]
[1741406582845,0.2,86016.0,86000.0,0.00105]
[1741406583046,0.244182,86001.0,86000.0,0.00143797]
[1741406583206,0.28050584,86001.0,86000.0,0.00143797]
[1741406584208,0.3061704,86001.0,86000.0,0.00143797]
[1741406584383,0.28050584,86001.0,86000.0,0.00143797]
[1741406584587,0.3283,86015.0,86004.0,0.0773]
[1741406584902,0.3283,86015.0,86005.0,0.11228]
[1741406584903,0.24417,86006.0,86005.0,0.11228]
[1741406585631,0.011627,86005.0,86004.0,0.0773]
[1741406588566,0.011627,86005.0,86004.0,0.0774698]
[1741406591172,0.24417,86006.0,86004.0,0.0774698]
[1741406591404,0.011627,86005.0,86004.0,0.0774698]
[1741406594803,0.0119646,86021.0,86014.0,0.011626]
[1741406595009,0.011625,86019.0,86015.0,0.0498]
[1741406595134,0.232509,86018.0,86016.0,0.0753]
[1741406595338,0.011625,86017.0,86016.0,0.0753]
[1741406596864,0.011625,86019.0,86016.0,0.0753]
[1741406597083,0.0119646,86021.0,86020.0,0.319429]
[1741406597084,0.0003396,86021.0,86020.0,0.319429]
[1741406597696,0.0003396,86021.0,86020.0,0.690929]
[1741406598114,0.0003396,86021.0,86020.0,0.4468]
[1741406598519,0.0003396,86021.0,86020.0,0.458425]
[1741406601307,0.0003396,86021.0,86020.0,0.136725]
[1741406601506,0.0003396,86021.0,86020.0,0.13788728]
[1741406602908,0.0003396,86021.0,86020.0,0.15242813]
[1741406604688,0.0003396,86021.0,86020.0,0.13788728]
[1741406604932,0.0003396,86021.0,86020.0,0.25040728]
[1741406605171,0.0003396,86021.0,86020.0,0.249245]
[1741406606488,0.0003396,86021.0,86020.0,0.570945]
[1741406608117,0.0003396,86021.0,86020.0,0.55932]
[1741406608581,0.0003396,86021.0,86020.0,0.570945]
[1741406613512,0.011624,86025.0,86020.0,0.570945]
[1741406613513,0.232477,86030.0,86022.0,0.011624]
[1741406613784,0.244111,86026.0,86022.0,0.00116236]
[1741406613987,0.011624,86027.0,86020.0,0.570945]
[1741406614191,0.011624,86027.0,86021.0,0.24528838]
[1741406614387,0.02175017,86029.0,86023.0,0.244118]
[1741406614570,0.02175017,86029.0,86024.0,0.011624]
[1741406615431,0.02175017,86029.0,86021.0,0.244126]
[1741406615432,0.011624,86027.0,86021.0,0.011625]
[1741406615638,0.02175017,86028.0,86023.0,0.244119]
[1741406615886,0.02175017,86028.0,86024.0,0.011624]
[1741406616504,0.26585717,86028.0,86023.0,0.011624]
[1741406616875,0.26585717,86028.0,86023.0,0.244118]
[1741406616876,0.03337417,86028.0,86023.0,0.244118]
[1741406617206,0.02175017,86027.0,86023.0,0.244118]
[1741406617585,0.02175017,86027.0,86024.0,0.011624]
[1741406617782,0.02175017,86027.0,86023.0,0.011624]
[1741406618484,0.02175017,86027.0,86023.0,0.244118]
[1741406618686,0.02175017,86026.0,86023.0,0.244118]
[1741406619301,0.02175017,86026.0,86024.0,0.011624]
[1741406619884,0.02175017,86025.0,86024.0,0.011624]
[1741406621666,0.02175017,86025.0,86021.0,0.244125]
[1741406622891,0.02175017,86025.0,86022.0,0.011624]
[1741406623062,0.02175017,86024.0,86022.0,0.011624]
[1741406623219,0.02175017,86024.0,86023.0,0.244119]
[1741406624637,0.02208977,86024.0,86023.0,0.244119]
[1741406630774,0.02208977,86024.0,86021.0,0.244125]
[1741406632347,0.02175017,86023.0,86021.0,0.244125]
[1741406632982,0.02175017,86023.0,86022.0,0.011624]
[1741406633185,0.02175017,86023.0,86022.0,0.01278638]
[1741406636174,0.02175017,86023.0,86022.0,0.01295618]
[1741406641925,0.02175017,86023.0,86022.0,0.01295617]
[1741406642122,0.02175017,86023.0,86022.0,0.0117938]
[1741406642333,0.02175017,86023.0,86022.0,0.0001698]
[1741406643398,0.02175017,86023.0,86022.0,0.0117938]
[1741406643572,0.05817095,86023.0,86022.0,0.0117938]
[1741406643978,0.02175017,86023.0,86022.0,0.0117938]
[1741406644556,0.02175017,86023.0,86022.0,0.0001698]
[1741406645350,0.05817096,86023.0,86022.0,0.0001698]
[1741406645560,0.06979496,86023.0,86022.0,0.0001698]
[1741406647866,0.09212301,86023.0,86022.0,0.1118898]
[1741406648072,0.14815685,86024.0,86022.0,0.1118898]
[1741406648269,0.011624,86023.0,86022.0,0.1118898]
[1741406650852,0.0344838,86023.0,86022.0,0.0001698]
[1741406651052,0.07090231,86023.0,86022.0,0.0001698]
[1741406651276,0.04804251,86023.0,86022.0,0.0001698]
[1741406651478,0.07116365,86023.0,86022.0,0.0001698]
[1741406651590,0.19896365,86023.0,86022.0,0.0001698]
[1741406653321,0.22172201,86023.0,86022.0,0.0001698]
[1741406653534,0.22172201,86023.0,86022.0,8e-07]
[1741406653752,0.24505201,86023.0,86022.0,8e-07]
[1741406656499,0.24505201,86023.0,86000.0,0.00143797]
[1741406656500,0.244162,86008.0,86000.0,0.00143797]
[1741406656659,0.40838051,86008.0,86000.0,0.00143797]
[1741406657261,0.244171,86005.0,86004.0,8e-07]
[1741406657469,0.28058951,86005.0,86004.0,8e-07]
[1741406657873,0.36128951,86005.0,86004.0,8e-07]
[1741406659009,0.40838951,86005.0,86004.0,8e-07]
[1741406659127,0.40838951,86005.0,85991.0,0.0008]
[1741406659128,0.0807,85996.0,85991.0,0.0008]
[1741406659334,0.011628,85992.0,85991.0,0.0008]
[1741406659536,0.04804651,85992.0,85991.0,0.0008]
[1741406660053,0.09514651,85992.0,85991.0,0.0008]
[1741406660255,0.17584651,85992.0,85991.0,0.0008]
[1741406661931,0.18450937,85992.0,85991.0,0.0008]
[1741406665228,0.14809086,85992.0,85991.0,0.0008]
[1741406665426,0.17192473,85992.0,85991.0,0.0008]
[1741406667940,0.20806094,85992.0,85991.0,0.0008]
[1741406670895,0.12736094,85992.0,85991.0,0.0008]
[1741406671300,0.09122473,85992.0,85991.0,0.0008]
[1741406671507,0.244227,85985.0,85975.0,0.0829]
[1741406678304,0.244227,85985.0,85972.0,0.00034]
[1741406680163,0.244261,85974.0,85972.0,0.00034]
[1741406680471,0.011631,85973.0,85972.0,0.00034]
[1741406680823,0.011631,85977.0,85972.0,0.00034]
[1741406681020,0.23263,85974.0,85972.0,0.00034]
[1741406681220,0.011631,85973.0,85972.0,0.00034]
[1741406681429,0.011631,85973.0,85972.0,0.00045615]
[1741406685821,0.04793542,85973.0,85972.0,0.00045615]
[1741406692315,0.011633,85955.0,85952.0,0.1885]
[1741406692652,0.011633,85955.0,85954.0,0.00507224]
[1741406692653,0.28061642,85955.0,85954.0,0.00507224]
[1741406697403,0.28061642,85955.0,85954.0,0.00524194]
[1741406701457,0.24433,85949.0,85936.0,0.1301]
[1741406701638,0.28063442,85949.0,85948.0,0.00394725]
[1741406703050,0.28063442,85949.0,85927.0,0.554453]
[1741406703051,0.244367,85936.0,85935.0,8e-07]
[1741406703256,0.244367,85936.0,85925.0,0.0001]
[1741406703257,0.244395,85926.0,85925.0,0.0001]
[1741406703491,0.0775,85935.0,85925.0,0.0001]
[1741406703492,0.011636,85934.0,85925.0,0.00021638]
[1741406703693,0.03632636,85933.0,85930.0,0.0757]
[1741406703905,0.232732,85936.0,85930.0,0.0757]
[1741406704133,0.232743,85932.0,85930.0,0.0757]
[1741406704300,0.011637,85931.0,85930.0,0.0757]
[1741406704717,0.244395,85926.0,85925.0,0.00021638]
[1741406709874,0.244395,85926.0,85925.0,0.00038618]
[1741406710695,0.28064885,85926.0,85925.0,0.00038618]
[1741406710927,0.244395,85926.0,85925.0,0.00038618]
[1741406711106,0.28065012,85926.0,85925.0,0.00038618]
[1741406712472,0.244395,85926.0,85925.0,0.00038618]
[1741406712654,0.28062512,85926.0,85925.0,0.00038618]
[1741406713456,0.244395,85926.0,85925.0,0.00038618]
[1741406714429,0.232747,85930.0,85925.0,0.00038618]
[1741406714639,0.011637,85929.0,85925.0,0.00038618]
[1741406714836,0.232747,85930.0,85926.0,0.0779]
[1741406715040,0.11620682,85931.0,85926.0,0.0779]
[1741406715445,0.232737,85934.0,85926.0,0.0779]
[1741406715446,0.244373,85934.0,85928.0,0.011637]
[1741406715645,0.011637,85932.0,85927.0,0.011637]
[1741406716573,0.011636,85938.0,85931.0,0.011637]
[1741406716757,0.02784244,85942.0,85934.0,0.244371]
[1741406716958,0.00855729,85946.0,85942.0,0.232715]
[1741406717159,0.232699,85948.0,85942.0,0.011635]
[1741406717359,0.27331981,85949.0,85943.0,0.011635]
[1741406717702,0.232701,85947.0,85942.0,0.011635]
[1741406717914,0.011634,85948.0,85942.0,0.011635]
[1741406718106,0.27331981,85949.0,85946.0,0.244339]
[1741406718107,0.0003396,85949.0,85946.0,0.244339]
[1741406718268,0.0003396,85949.0,85948.0,0.136734]
[1741406721705,0.0003396,85949.0,85948.0,0.1251]
[1741406721940,0.0003396,85949.0,85948.0,0.0779]
[1741406722143,0.0119736,85949.0,85948.0,0.11236]
[1741406724229,0.0119736,85949.0,85930.0,0.0806698]
[1741406724230,0.011637,85931.0,85930.0,0.0806698]
[1741406724428,0.011637,85932.0,85930.0,0.1930698]
[1741406724781,0.011636,85935.0,85930.0,0.1930698]
[1741406724983,0.011636,85934.0,85930.0,0.1930698]
[1741406725186,0.011636,85935.0,85930.0,0.2047068]
[1741406725404,0.011635,85947.0,85942.0,0.011635]
[1741406725605,0.0003396,85949.0,85943.0,0.232712]
[1741406725975,0.0119736,85949.0,85943.0,0.244347]
[1741406726512,0.244332,85948.0,85942.0,0.11232]
[1741406726685,0.011635,85942.0,85935.0,0.011636]
[1741406726895,0.011635,85942.0,85937.0,0.011636]
[1741406727456,0.011636,85940.0,85936.0,0.11244]
[1741406728235,0.011636,85940.0,85936.0,0.11360353]
[1741406728407,0.232711,85944.0,85938.0,0.011636]
[1741406728618,0.011634,85950.0,85940.0,0.011636]
[1741406728840,0.011634,85950.0,85945.0,0.011635]
[1741406729034,0.011634,85950.0,85946.0,0.1124]
[1741406729462,0.011634,85948.0,85946.0,0.1124]
[1741406729704,0.244336,85947.0,85946.0,0.1124]
[1741406730045,0.24378694,85947.0,85946.0,0.1124]
[1741406731937,0.011634,85953.0,85946.0,0.124035]
[1741406731938,0.011634,85952.0,85946.0,0.124035]
[1741406732093,0.01132636,85947.0,85946.0,0.124035]
[1741406732296,0.011634,85951.0,85946.0,0.124035]
[1741406732495,0.01132615,85947.0,85946.0,0.124035]
[1741406732679,0.011634,85950.0,85946.0,0.1124]
[1741406732886,0.01132615,85947.0,85946.0,0.1124]
[1741406733170,0.011634,85950.0,85946.0,0.1124]
[1741406733328,0.02296115,85947.0,85946.0,0.1124]
[1741406733583,0.011635,85947.0,85946.0,0.1124]
[1741406733834,0.02296115,85947.0,85946.0,0.1124]
[1741406736212,0.01132615,85947.0,85946.0,0.1124]
[1741406736413,0.01132615,85947.0,85946.0,0.1125698]
[1741406736572,0.0119736,85949.0,85946.0,0.1125698]
[1741406736810,0.01031986,85947.0,85946.0,0.1125698]
[1741406737024,0.011635,85947.0,85946.0,0.1125698]
[1741406737339,0.02195486,85947.0,85946.0,0.1125698]
[1741406741587,0.03364986,85947.0,85946.0,0.1125698]
[1741406741712,0.01031986,85947.0,85946.0,0.1928698]
[1741406741919,0.0003396,85949.0,85946.0,0.20566819]
[1741406742123,0.01031986,85947.0,85946.0,0.20566819]
[1741406742347,0.0003396,85949.0,85946.0,0.2045048]
[1741406742524,0.01031986,85947.0,85946.0,0.2056682]
[1741406742724,0.0003396,85949.0,85946.0,0.2045048]
[1741406742950,0.01031986,85947.0,85946.0,0.2045048]
[1741406743155,0.0003396,85949.0,85946.0,0.2045048]
[1741406743478,0.0003396,85949.0,85947.0,0.244336]
[1741406743674,0.01032006,85948.0,85947.0,0.244336]
[1741406743877,0.01032006,85948.0,85946.0,0.2045048]
[1741406744263,0.011635,85947.0,85946.0,0.1928698]
[1741406744467,0.244336,85947.0,85946.0,0.1928698]
[1741406744671,0.25465586,85947.0,85946.0,0.1928698]
[1741406745492,0.01031986,85947.0,85946.0,0.1928698]
[1741406745864,0.011635,85947.0,85946.0,0.1928698]
[1741406746083,0.0219572,85947.0,85946.0,0.1928698]
[1741406747312,0.0219572,85947.0,85946.0,0.1123298]
[1741406749327,0.0222968,85947.0,85946.0,0.1123298]
[1741406749488,0.05868358,85947.0,85946.0,0.1123298]
[1741406750916,0.0222968,85947.0,85946.0,0.1123298]
[1741406752300,0.0222968,85947.0,85946.0,0.0001698]
[1741406753438,0.24206339,85950.0,85946.0,0.0001698]
[1741406753649,0.01031448,85947.0,85946.0,0.0001698]
[1741406753850,0.011635,85947.0,85946.0,0.0001698]
[1741406754056,0.02121218,85947.0,85946.0,0.0001698]
[1741406759088,0.00957718,85947.0,85946.0,0.0001698]
[1741406759289,0.00957718,85947.0,85946.0,0.0903048]
[1741406759539,0.011634,85952.0,85946.0,0.3230078]
[1741406759741,0.244324,85951.0,85947.0,0.00116338]
[1741406760083,0.244324,85951.0,85946.0,0.0903048]
[1741406760308,0.244324,85951.0,85946.0,0.0786698]
[1741406760439,0.232698,85949.0,85946.0,0.0786698]
[1741406761395,0.232698,85949.0,85946.0,0.0001698]
[1741406761396,0.232701,85947.0,85946.0,0.0001698]
[1741406761524,0.24227145,85947.0,85946.0,0.0001698]
[1741406761995,0.25390645,85947.0,85946.0,0.0001698]
[1741406763682,0.290327,85947.0,85946.0,0.0001698]
[1741406767167,0.368527,85947.0,85946.0,0.0001698]
[1741406769115,0.391857,85947.0,85946.0,0.0001698]
[1741406769817,0.391857,85947.0,85946.0,8e-07]
[1741406769996,0.440757,85947.0,85946.0,8e-07]
[1741406771738,0.46432729,85947.0,85946.0,8e-07]
[1741406771943,0.21999129,85947.0,85930.0,0.0001698]
[1741406772167,0.244381,85931.0,85930.0,0.0001698]
[1741406772380,0.28080155,85931.0,85930.0,0.0001698]
[1741406772799,0.29035931,85931.0,85930.0,0.0001698]
[1741406772942,0.05761531,85931.0,85930.0,0.0826698]
[1741406773616,0.02119476,85931.0,85930.0,0.0826698]
[1741406776443,0.05754833,85931.0,85930.0,0.0001698]
[1741406778242,0.08087833,85931.0,85930.0,0.0001698]
[1741406779607,0.10381295,85931.0,85930.0,8e-07]
[1741406779911,0.21565295,85931.0,85930.0,8e-07]
[1741406780234,0.29855295,85931.0,85930.0,8e-07]
[1741406782392,0.3130938,85931.0,85919.0,0.005]
[1741406782595,0.23278,85918.0,85917.0,0.0001698]
[1741406782801,0.26913357,85918.0,85917.0,0.0001698]
[1741406783017,0.29025624,85918.0,85917.0,0.0001698]
[1741406784206,0.36595624,85918.0,85917.0,8e-07]
[1741406785600,0.38979571,85918.0,85917.0,8e-07]
[1741406785813,0.244472,85899.0,85898.0,0.1120498]
[1741406786004,0.244472,85899.0,85898.0,0.11243824]
[1741406786328,0.00948118,85899.0,85898.0,0.23873824]
[1741406786535,0.00948118,85899.0,85898.0,0.57207924]
[1741406786737,0.6931864,85900.0,85899.0,0.38531285]
[1741406787658,0.011635,85947.0,85938.0,0.011636]
[1741406787871,0.011635,85945.0,85939.0,0.011636]
[1741406788076,0.011635,85943.0,85938.0,0.011636]
[1741406788222,0.244349,85943.0,85937.0,0.0783]
[1741406788623,0.011636,85940.0,85937.0,0.0783]
[1741406790793,0.011636,85939.0,85937.0,0.0783]
[1741406791798,0.24167262,85946.0,85937.0,0.089936]
[1741406792030,0.24167262,85946.0,85942.0,0.232714]
[1741406792031,0.0003396,85946.0,85942.0,0.232714]
[1741406792181,0.0003396,85946.0,85941.0,0.011635]
[1741406792385,0.0003396,85946.0,85938.0,0.244361]
[1741406792614,0.0003396,85946.0,85940.0,0.23272]
[1741406792816,0.0003396,85946.0,85942.0,0.011635]
[1741406793014,0.011635,85944.0,85937.0,0.089936]
[1741406794017,0.244345,85944.0,85937.0,0.0783]
[1741406794216,0.011635,85943.0,85937.0,0.0783]
[1741406794380,0.244345,85944.0,85937.0,0.0783]
[1741406794739,0.0003396,85946.0,85945.0,0.244341]
[1741406794916,0.0003396,85946.0,85945.0,0.356381]
[1741406795341,0.0003396,85946.0,85945.0,0.678081]
[1741406796551,0.0003396,85946.0,85945.0,0.445375]
[1741406797032,0.0003396,85946.0,85945.0,0.678081]
[1741406797239,0.0003396,85946.0,85945.0,0.756381]
[1741406797517,0.0003396,85946.0,85945.0,0.82062185]
[1741406797716,0.0003396,85946.0,85945.0,1.35462185]
[1741406798722,0.0003396,85946.0,85945.0,1.3802581]
[1741406798842,0.0003396,85946.0,85945.0,1.35562185]
[1741406799262,0.11640294,85976.0,85975.0,0.33709685]
[1741406799263,0.10477194,85976.0,85975.0,0.33709685]
[1741406799484,0.10477194,85976.0,85975.0,0.59881685]
[1741406799485,0.10487982,85976.0,85975.0,0.59881685]
[1741406800796,0.0003396,86005.0,85986.0,0.33706585]
[1741406800922,0.0003396,86005.0,85986.0,0.44958585]
[1741406801139,0.0003396,86005.0,85986.0,0.47458585]
[1741406801973,4e-07,85987.0,85986.0,0.52438585]
[1741406802172,0.0003396,86005.0,86004.0,0.41071485]
[1741406802372,0.00072766,86005.0,86004.0,1.52829485]
[1741406804026,0.00072766,86005.0,86004.0,1.53229485]
[1741406804179,0.00072766,86005.0,86004.0,1.52829485]
[1741406804611,0.00072766,86005.0,86004.0,1.53629485]
[1741406805030,0.00072766,86005.0,86004.0,1.52829485]
[1741406805232,0.00072766,86005.0,86004.0,1.53129485]
[1741406805442,0.00072766,86005.0,86004.0,1.53429485]
[1741406806371,0.00072766,86005.0,86004.0,1.50945485]
[1741406806715,0.00072766,86005.0,86004.0,1.50645485]
[1741406807303,0.00072766,86005.0,86004.0,1.50345485]
[1741406807506,0.00072766,86005.0,86004.0,1.50545485]
[1741406807725,0.00072766,86005.0,86004.0,1.50745485]
[1741406807919,0.00072766,86005.0,86004.0,1.50345485]
[1741406808126,0.00072766,86005.0,86004.0,1.50545485]
[1741406808329,0.00072766,86005.0,86004.0,1.50745485]
[1741406808777,0.00072766,86005.0,86004.0,1.50545485]
[1741406809218,0.00072766,86005.0,86004.0,1.50745485]
[1741406810147,0.00072766,86005.0,86004.0,1.55745485]
[1741406810359,0.00072766,86005.0,86004.0,1.55545485]
[1741406810671,0.00072766,86005.0,86004.0,1.55745485]
[1741406810875,0.00072766,86005.0,86004.0,1.02345485]
[1741406811099,0.0003396,86027.0,86004.0,1.02345485]
[1741406811100,0.0003396,86027.0,86016.0,0.025]
[1741406811330,0.0003396,86027.0,86026.0,0.38385185]
[1741406811331,0.00045599,86027.0,86026.0,0.38385185]
[1741406811537,0.00045599,86027.0,86026.0,0.49645185]
[1741406811934,0.00045599,86027.0,86026.0,0.52145185]
[1741406812794,0.00045599,86027.0,86026.0,0.52445185]
[1741406813359,7.9e-07,86030.0,86029.0,0.061623]
[1741406813712,7.9e-07,86035.0,86034.0,0.15186385]
[1741406813833,7.9e-07,86035.0,86034.0,0.68702567]
[1741406814035,7.9e-07,86035.0,86034.0,0.68586385]
[1741406814447,7.9e-07,86035.0,86034.0,0.70793644]
[1741406815331,7.9e-07,86035.0,86034.0,0.76343644]
[1741406815690,7.9e-07,86035.0,86034.0,0.75743644]
[1741406815893,7.9e-07,86035.0,86034.0,0.76243644]
[1741406816254,7.9e-07,86035.0,86034.0,0.76743644]
[1741406816670,3.9e-07,86038.0,86037.0,0.061622]
[1741406816872,0.0003394,86062.0,86061.0,0.244012]
[1741406817073,0.0003394,86062.0,86061.0,0.82147191]
[1741406817276,0.00041161,86062.0,86061.0,0.82147191]
[1741406817889,0.232356,86075.0,86066.0,0.243996]
[1741406818114,0.011618,86072.0,86067.0,0.32855962]
[1741406818274,0.243973,86075.0,86067.0,0.32739791]
[1741406818275,0.01507309,86074.0,86067.0,0.32739791]
[1741406818453,0.011618,86069.0,86068.0,0.00116171]
[1741406818673,0.011618,86068.0,86067.0,0.31577991]
[1741406819218,0.01513269,86068.0,86067.0,0.31577991]
[1741406819419,0.011618,86072.0,86067.0,0.31577991]
[1741406819624,0.01513405,86071.0,86067.0,0.31577991]
[1741406820094,0.243977,86074.0,86067.0,0.31577991]
[1741406820305,0.00017,86082.0,86078.0,0.011617]
[1741406820493,0.00017,86082.0,86078.0,0.12521857]
[1741406821085,0.00017,86082.0,86078.0,0.44099848]
[1741406821249,0.00017,86082.0,86078.0,0.43983691]
[1741406821644,0.00017,86082.0,86078.0,0.45437776]
[1741406822793,0.00017,86082.0,86078.0,0.47937776]
[1741406823151,0.0009697,86079.0,86078.0,0.45437776]
[1741406827468,0.0009697,86079.0,86078.0,0.45537776]
[1741406827701,0.0009697,86079.0,86078.0,0.45545776]
[1741406828125,0.0009697,86079.0,86078.0,0.45645776]